fUSD/lending_fUSD_20241129
["ID","MTS","AMOUNT","RATE_DAILY","PERIOD"]
[343716293,1732905326086,-2164.494163,9.999e-05,2]
[343716294,1732905326108,-766.15781248,9.999e-05,2]
[343716295,1732905326130,-1379.58292729,0.0001,2]
[343716296,1732905326154,-10992.45033247,0.0001,2]
[343716297,1732905326683,2612.88,9.552e-05,2]
[343716298,1732905332049,-50000.0,0.0001,2]
[343716299,1732905339576,-50000.0,0.0001,2]
[343716300,1732905344133,1337.6,8.219e-05,2]
[343716301,1732905345185,311.97,9.789e-05,2]
[343716302,1732905349327,-50000.0,0.0001,2]
[343716303,1732905362112,1000.0,9.754e-05,2]
[343716313,1732905395561,-163.09,9.722e-05,2]
[343716314,1732905770313,152.12677031,7.12e-05,2]
[343716315,1732905926509,212.74,0.00016658,30]
[343716454,1732906232366,-1270.72,8.219e-05,2]
[343716455,1732906232376,-1852.42,9.11e-05,2]
[343716456,1732906232385,-180.76,9.116e-05,2]
[343716457,1732906232395,-1000.0,9.153e-05,2]
[343716459,1732906232404,-545.23892,9.288e-05,2]
[343716460,1732906232415,-1876.63091592,9.288e-05,2]
[343716461,1732906232427,-419.80332225,9.288e-05,2]
[343716462,1732906232466,-400.0,9.288e-05,2]
[343716463,1732906232477,-523.3257042,9.288e-05,2]
[343716464,1732906232488,-514.80501158,9.288e-05,2]
[343716465,1732906232632,-550.62852736,9.288e-05,2]
[343716466,1732906232845,-3206.24207373,9.288e-05,2]
[343716467,1732906234672,-12433.39264804,9.288e-05,2]
[343716468,1732906234683,-2221.37201313,9.288e-05,2]
[343716469,1732906234695,-1208.56086379,9.288e-05,2]
[343716470,1732906234707,-250.0,9.288e-05,2]
[343716471,1732906234717,-250.0,9.289e-05,2]
[343716472,1732906234726,-449.67903321,9.354e-05,2]
[343716473,1732906234739,-162.84096679,9.354e-05,2]
[343716474,1732906234748,-161.13,9.394e-05,2]
[343716475,1732906234758,-150.0,9.452e-05,2]
[343716476,1732906234768,-250.0,9.493e-05,2]
[343716477,1732906234778,-154.34,9.589e-05,2]
[343716478,1732906234788,-150.0,9.862e-05,2]
[343716479,1732906234799,-1600.0,9.863e-05,2]
[343716480,1732906234809,-2500.0,9.9e-05,2]
[343716481,1732906234818,-974.832,9.961e-05,2]
[343716482,1732906234828,-35066.0,9.973e-05,2]
[343716483,1732906234838,-174.85,9.973e-05,2]
[343716484,1732906234847,-2000.0,9.999e-05,2]
[343716485,1732906234857,-500.0,9.999e-05,2]
[343716486,1732906234867,-1376452.23677169,0.0001,2]
[343716487,1732906234877,-689.79146364,0.0001,2]
[343716488,1732906234886,-926795.10648981,0.0001,2]
[343716489,1732906234898,-2941.40606896,0.0001,2]
[343716490,1732906234911,-1609.24460996,0.0001,2]
[343716491,1732906234923,-2331.29764205,0.0001,2]
[343716497,1732906238863,-7760.7922753,0.0001,2]
[343716498,1732906238875,-604.38321807,0.0001,2]
[343716499,1732906238886,-2136.15,0.0001,2]
[343716500,1732906238897,-1852.28876,0.0001,2]
[343716501,1732906238941,-5293.5075836,0.0001,2]
[343716502,1732906238952,-1146.93839058,0.0001,2]
[343716503,1732906238968,-748.51535613,0.0001,2]
[343716504,1732906239016,-73472169.24877733,0.0001,2]
[343716505,1732906239026,-213.35780354,0.0001,2]
[343716506,1732906239035,-1000.0,0.0001,2]
[343716507,1732906239046,-10000.0,0.0001,2]
[343716508,1732906239055,-1000.0,0.0001,2]
[343716509,1732906239065,-1000.0,0.0001,2]
[343716510,1732906239074,-1000.0,0.0001,2]
[343716511,1732906239084,-7727.8749995,0.0001,2]
[343716512,1732906239093,-1187.48271982,0.0001,2]
[343716513,1732906239102,-161.90565588,0.0001,2]
[343716514,1732906239111,-201.0,0.0001,2]
[343716515,1732906239121,-201.0,0.0001,2]
[343716516,1732906239130,-201.0,0.0001,2]
[343716517,1732906239139,-201.0,0.0001,2]
[343716518,1732906239149,-201.0,0.0001,2]
[343716519,1732906239158,-201.0,0.0001,2]
[343716520,1732906239167,-201.0,0.0001,2]
[343716521,1732906239176,-201.0,0.0001,2]
[343716522,1732906239185,-201.0,0.0001,2]
[343716523,1732906239195,-223.0,0.0001,2]
[343716524,1732906239204,-223.0,0.0001,2]
[343716525,1732906239214,-223.0,0.0001,2]
[343716526,1732906239224,-223.0,0.0001,2]
[343716527,1732906239234,-223.0,0.0001,2]
[343716528,1732906239243,-201.0,0.0001,2]
[343716529,1732906239252,-201.0,0.0001,2]
[343716530,1732906239261,-223.0,0.0001,2]
[343716531,1732906239271,-223.0,0.0001,2]
[343716532,1732906239280,-223.0,0.0001,2]
[343716533,1732906239289,-223.0,0.0001,2]
[343716534,1732906239300,-223.0,0.0001,2]
[343716535,1732906239310,-223.0,0.0001,2]
[343716536,1732906239319,-223.0,0.0001,2]
[343716537,1732906239328,-223.0,0.0001,2]
[343716538,1732906239337,-223.0,0.0001,2]
[343716539,1732906239346,-223.0,0.0001,2]
[343716540,1732906239355,-204.0,0.0001,2]
[343716541,1732906239365,-223.0,0.0001,2]
[343716542,1732906239374,-204.0,0.0001,2]
[343716543,1732906239384,-223.0,0.0001,2]
[343716544,1732906239394,-204.0,0.0001,2]
[343716545,1732906239403,-615.0,0.0001,2]
[343716546,1732906239412,-204.0,0.0001,2]
[343716547,1732906239422,-615.0,0.0001,2]
[343716548,1732906239431,-204.0,0.0001,2]
[343716550,1732906239441,-615.0,0.0001,2]
[343716552,1732906239449,-223.0,0.0001,2]
[343716554,1732906239458,-204.0,0.0001,2]
[343716556,1732906239468,-615.0,0.0001,2]
[343716558,1732906239477,-223.0,0.0001,2]
[343716560,1732906239486,-615.0,0.0001,2]
[343716562,1732906239495,-223.0,0.0001,2]
[343716564,1732906239504,-615.0,0.0001,2]
[343716566,1732906239513,-204.0,0.0001,2]
[343716568,1732906239522,-615.0,0.0001,2]
[343716570,1732906239532,-204.0,0.0001,2]
[343716572,1732906239541,-615.0,0.0001,2]
[343716574,1732906239552,-204.0,0.0001,2]
[343716576,1732906239561,-615.0,0.0001,2]
[343716578,1732906239570,-204.0,0.0001,2]
[343716580,1732906239579,-615.0,0.0001,2]
[343716581,1732906239589,-615.0,0.0001,2]
[343716582,1732906239598,-615.0,0.0001,2]
[343716583,1732906239607,-615.0,0.0001,2]
[343716584,1732906239617,-615.0,0.0001,2]
[343716585,1732906239627,-615.0,0.0001,2]
[343716586,1732906239638,-615.0,0.0001,2]
[343716587,1732906239647,-615.0,0.0001,2]
[343716588,1732906239656,-615.0,0.0001,2]
[343716589,1732906239666,-615.0,0.0001,2]
[343716590,1732906239675,-615.0,0.0001,2]
[343716591,1732906239684,-150.0,0.0001,2]
[343716592,1732906239693,-1000.0,0.0001,2]
[343716593,1732906239707,-150.0,0.0001,2]
[343716594,1732906239716,-1000.0,0.0001,2]
[343716595,1732906239725,-1000.0,0.0001,2]
[343716596,1732906239735,-1000.0,0.0001,2]
[343716597,1732906239756,-1000.0,0.0001,2]
[343716598,1732906239773,-1000.0,0.0001,2]
[343716599,1732906239792,-1000.0,0.0001,2]
[343716600,1732906239812,-1000.0,0.0001,2]
[343716601,1732906239828,-1000.0,0.0001,2]
[343716602,1732906239847,-1000.0,0.0001,2]
[343716603,1732906239867,-1000.0,0.0001,2]
[343716604,1732906239885,-1000.0,0.0001,2]
[343716605,1732906239904,-1000.0,0.0001,2]
[343716606,1732906239922,-1000.0,0.0001,2]
[343716607,1732906239940,-1000.0,0.0001,2]
[343716608,1732906239955,-1000.0,0.0001,2]
[343716609,1732906239974,-1000.0,0.0001,2]
[343716610,1732906239988,-1000.0,0.0001,2]
[343716611,1732906240005,-1000.0,0.0001,2]
[343716612,1732906240020,-1000.0,0.0001,2]
[343716613,1732906240035,-1000.0,0.0001,2]
[343716614,1732906240058,-1000.0,0.0001,2]
[343716615,1732906240072,-1000.0,0.0001,2]
[343716616,1732906240087,-1000.0,0.0001,2]
[343716617,1732906240102,-1000.0,0.0001,2]
[343716618,1732906240116,-1000.0,0.0001,2]
[343716620,1732906240133,-1000.0,0.0001,2]
[343716621,1732906240147,-1000.0,0.0001,2]
[343716622,1732906240162,-1000.0,0.0001,2]
[343716623,1732906240177,-1000.0,0.0001,2]
[343716624,1732906240192,-1000.0,0.0001,2]
[343716625,1732906240206,-1000.0,0.0001,2]
[343716628,1732906240222,-1000.0,0.0001,2]
[343716629,1732906240240,-1000.0,0.0001,2]
[343716630,1732906240257,-1000.0,0.0001,2]
[343716631,1732906240271,-1000.0,0.0001,2]
[343716632,1732906240287,-1000.0,0.0001,2]
[343716633,1732906240302,-1146.99028099,0.0001,2]
[343716634,1732906240317,-250.0,0.0001,2]
[343716635,1732906240332,-250.0,0.0001,2]
[343716636,1732906240347,-250.0,0.0001,2]
[343716637,1732906240361,-250.0,0.0001,2]
[343716638,1732906240377,-250.0,0.0001,2]
[343716639,1732906240393,-250.0,0.0001,2]
[343716640,1732906240408,-250.0,0.0001,2]
[343716641,1732906240423,-250.0,0.0001,2]
[343716642,1732906240440,-250.0,0.0001,2]
[343716643,1732906240456,-250.0,0.0001,2]
[343716644,1732906240472,-250.0,0.0001,2]
[343716645,1732906240487,-250.0,0.0001,2]
[343716646,1732906240503,-250.0,0.0001,2]
[343716647,1732906240517,-250.0,0.0001,2]
[343716648,1732906240533,-250.0,0.0001,2]
[343716649,1732906240548,-250.0,0.0001,2]
[343716650,1732906240563,-250.0,0.0001,2]
[343716651,1732906240579,-250.0,0.0001,2]
[343716652,1732906240594,-250.0,0.0001,2]
[343716653,1732906240609,-250.0,0.0001,2]
[343716654,1732906240623,-250.0,0.0001,2]
[343716655,1732906240638,-250.0,0.0001,2]
[343716656,1732906240653,-250.0,0.0001,2]
[343716657,1732906240667,-250.0,0.0001,2]
[343716658,1732906240681,-250.0,0.0001,2]
[343716659,1732906240695,-378.9,0.0001,2]
[343716660,1732906240713,-2202.27481604,0.0001,2]
[343716661,1732906240734,-3521.19989403,0.0001,2]
[343716662,1732906240753,-76.52528993,0.0001,2]
[343716663,1732906240768,-5203.25545281,0.0001,2]
[343716666,1732906240786,-5639.78900341,0.0001,2]
[343716667,1732906240804,-348.48290493,0.0001,2]
[343716668,1732906241031,-28548.36830619,0.0001,2]
[343716669,1732906242535,-16.13634692,0.0001,2]
[343716670,1732906242547,-755.7236064,0.0001,2]
[343716671,1732906242840,-29531.60013867,0.0001,2]
[343716691,1732906245051,-3157.60919382,0.0001,2]
[343716692,1732906245077,-31644.95399988,0.0001,2]
[343716693,1732906245679,-9655.4,0.0001,2]
[343716703,1732906245770,-3198.80634282,0.0001,2]
[343716705,1732906245783,-2787.29564598,0.0001,2]
[343716725,1732906246622,-44575.90817531,0.0001,2]
[343716726,1732906246635,-907.90963364,0.0001,2]
[343716729,1732906246677,-475.5,0.0001,2]
[343716740,1732906246786,-851.943365,0.0001,2]
[343717001,1732906547849,202.1,0.00016658,30]
[343717003,1732907135884,1500.0,0.00018,30]
[343717006,1732907149006,191.99,0.00016658,30]
[343717007,1732907229693,489.683,0.0002453,120]
[343717030,1732907431696,-1207.18,8.219e-05,2]
[343717031,1732907431707,-616.45395509,9e-05,2]
[343717032,1732907431717,-3465.74,9.054e-05,2]
[343717033,1732907431727,-161.13,9.088e-05,2]
[343717034,1732907431736,-1000.0,9.09e-05,2]
[343717035,1732907431746,-250.0,9.159e-05,2]
[343717036,1732907431755,-306.26,9.191e-05,2]
[343717037,1732907431764,-154.32,9.589e-05,2]
[343717038,1732907431774,-910.1244,9.8e-05,2]
[343717039,1732907431783,-1600.0,9.863e-05,2]
[343717040,1732907431792,-300.0,9.899e-05,2]
[343717041,1732907431801,-2500.0,9.9e-05,2]
[343717042,1732907431811,-39880.3438,9.9e-05,2]
[343717043,1732907431821,-2212.9534,9.9e-05,2]
[343717044,1732907431830,-152621.7064,9.9e-05,2]
[343717045,1732907432046,-1000.0,9.9e-05,2]
[343717049,1732907432112,-813.497,9.962e-05,2]
[343717051,1732907432123,-6114.22568724,9.972e-05,2]
[343717053,1732907432133,-35066.0,9.973e-05,2]
[343717055,1732907432143,-6114.22568724,9.974e-05,2]
[343717057,1732907432152,-3847.90018955,9.975e-05,2]
[343717059,1732907432166,-6114.22568724,9.977e-05,2]
[343717061,1732907432176,-3847.90018955,9.978e-05,2]
[343717063,1732907432185,-6114.22568724,9.98e-05,2]
[343717065,1732907432195,-3847.90018955,9.982e-05,2]
[343717067,1732907432205,-6114.22568724,9.989e-05,2]
[343717069,1732907432215,-438.23669064,9.99e-05,2]
[343717071,1732907432224,-3847.90018955,9.991e-05,2]
[343717073,1732907432234,-6114.22568724,9.991e-05,2]
[343717075,1732907432244,-438.23669064,9.992e-05,2]
[343717077,1732907432253,-3847.90018955,9.993e-05,2]
[343717079,1732907432263,-438.23669064,9.996e-05,2]
[343717081,1732907432273,-4642.1330133,9.998e-05,2]
[343717083,1732907432282,-520.8321217,9.998e-05,2]
[343717085,1732907432291,-3847.90018955,9.999e-05,2]
[343717087,1732907432301,-915.50939814,9.999e-05,2]
[343717089,1732907432310,-2000.0,9.999e-05,2]
[343717091,1732907432319,-500.0,9.999e-05,2]
[343717093,1732907432328,-8862.5335864,0.0001,2]
[343717095,1732907432339,-8862.53358634,0.0001,2]
[343717097,1732907432349,-8862.53358634,0.0001,2]
[343717099,1732907432358,-8862.53358634,0.0001,2]
[343717101,1732907432367,-8862.53358634,0.0001,2]
[343717103,1732907432376,-8862.53358634,0.0001,2]
[343717105,1732907432385,-8862.53358634,0.0001,2]
[343717108,1732907432399,-8862.53358634,0.0001,2]
[343717110,1732907432408,-8862.53358634,0.0001,2]
[343717111,1732907432417,-752.0,0.0001,2]
[343717114,1732907432427,-2912809.38609624,0.0001,2]
[343717115,1732907432440,-2406.2,0.0001,2]
[343717116,1732907432452,-1454588.31207196,0.0001,2]
[343717117,1732907432518,-3715.73401905,0.0001,2]
[343717118,1732907432529,-936.56,0.0001,2]
[343717119,1732907432607,-194452.61496442,0.0001,2]
[343717120,1732907432668,-58320.0,0.0001,2]
[343717121,1732907432679,-4764.68256852,0.0001,2]
[343717122,1732907437737,-1866.8761,0.0001,2]
[343717123,1732907437748,-4881.744,0.0001,2]
[343717124,1732907437815,-20786.02357043,0.0001,2]
[343717125,1732907437826,-2162768.21133165,0.0001,2]
[343717126,1732907437835,-71380194.80015102,0.0001,2]
[343717127,1732907437846,-3449.77986307,0.0001,2]
[343717128,1732907437858,-2387.97908671,0.0001,2]
[343717508,1732907442767,-15515.3160395,0.0001,2]
[343717510,1732907442779,-4987.09746992,0.0001,2]
[343717512,1732907442791,-12391.11588314,0.0001,2]
[343717514,1732907442803,-7508.96840074,0.0001,2]
[343717517,1732907442927,-97683.67498734,0.0001,2]
[343717584,1732907446492,-342.989001,0.0001,2]
[343717585,1732907447091,-3417.55905,0.0001,2]
[343717590,1732907746279,182.39,0.00016658,30]
[343717593,1732908208641,500.0,0.00024999,120]
[343717605,1732908481901,173.27,0.00016658,30]
[343717619,1732908632290,-619.02972004,8.219e-05,2]
[343717620,1732908632308,-527.79027996,8.219e-05,2]
[343717621,1732908632319,-592.88889234,8.685e-05,2]
[343717622,1732908632438,-407.11110766,8.685e-05,2]
[343717624,1732908632449,-153.13,8.707e-05,2]
[343717626,1732908632460,-217.87,8.841e-05,2]
[343717628,1732908632475,-250.0,8.924e-05,2]
[343717630,1732908632485,-250.0,8.924e-05,2]
[343717632,1732908632495,-331.02105587,9e-05,2]
[343717634,1732908632749,-434.84891413,9e-05,2]
[343717635,1732908632759,-159.75,9.135e-05,2]
[343717636,1732908632769,-162.96,9.183e-05,2]
[343717637,1732908632780,-300.0,9.191e-05,2]
[343717638,1732908632790,-10524.94,9.192e-05,2]
[343717639,1732908632800,-150.0,9.276e-05,2]
[343717640,1732908632810,-476.1918,9.277e-05,2]
[343717641,1732908632819,-11050.5367,9.277e-05,2]
[343717642,1732908632829,-2637.7209,9.277e-05,2]
[343717643,1732908632838,-788.434,9.287e-05,2]
[343717644,1732908632848,-51511.76108204,9.288e-05,2]
[343717667,1732908639059,-16054.23891796,9.288e-05,2]
[343717668,1732908639068,-2242.04728375,9.377e-05,2]
[343717669,1732908639077,-313.6938,9.377e-05,2]
[343717670,1732908639087,-75392.6529,9.377e-05,2]
[343717671,1732908639096,-150044.9688,9.377e-05,2]
[343717672,1732908639105,-592.7793,9.377e-05,2]
[343717673,1732908639114,-2021.0115,9.377e-05,2]
[343717674,1732908639123,-832.8,9.377e-05,2]
[343717675,1732908639132,-13710.9067934,9.452e-05,2]
[343717676,1732908639200,-11934.0932066,9.452e-05,2]
[343717677,1732908639210,-797.0,9.452e-05,2]
[343717678,1732908639219,-454.0,9.452e-05,2]
[343717679,1732908639228,-1709.0,9.452e-05,2]
[343717680,1732908639237,-500.90139761,9.453e-05,2]
[343717681,1732908639246,-160.93449564,9.453e-05,2]
[343717682,1732908639256,-159.3817556,9.453e-05,2]
[343717683,1732908639265,-500.0,9.453e-05,2]
[343717684,1732908639274,-159.36627991,9.453e-05,2]
[343717685,1732908639284,-159.39132633,9.453e-05,2]
[343717686,1732908639294,-159.36530203,9.453e-05,2]
[343717687,1732908639304,-500.0,9.453e-05,2]
[343717688,1732908639314,-159.39388467,9.453e-05,2]
[343717689,1732908639323,-159.36370951,9.453e-05,2]
[343717690,1732908639333,-159.37859586,9.453e-05,2]
[343717691,1732908639343,-153.43004624,9.453e-05,2]
[343717692,1732908639373,-5.95064714,9.453e-05,2]
[343717693,1732908639383,-507.04250113,9.453e-05,2]
[343717694,1732908639392,-159.85848787,9.453e-05,2]
[343717695,1732908639402,-124.98035239,9.453e-05,2]
[343717696,1732908639434,-375.01964761,9.453e-05,2]
[343717697,1732908639443,-500.0,9.453e-05,2]
[343717698,1732908639453,-500.0,9.453e-05,2]
[343717699,1732908639466,-355.75656399,9.453e-05,2]
[343717700,1732908639476,-268.538268,9.453e-05,2]
[343717701,1732908639486,-500.81353675,9.453e-05,2]
[343717702,1732908639496,-58378013.02,9.477e-05,2]
[343717703,1732908639507,-259.83180757,9.587e-05,2]
[343717704,1732908639516,-29531.24018268,9.587e-05,2]
[343717705,1732908639526,-3352.4490553,9.587e-05,2]
[343717706,1732908639537,-249.57,9.587e-05,2]
[343717707,1732908639547,-227.46,9.589e-05,2]
[343717708,1732908639557,-400.0,9.589e-05,2]
[343717709,1732908639566,-361.48,9.678e-05,2]
[343717710,1732908639575,-742.1876286,9.7e-05,2]
[343717711,1732908639585,-227.46,9.726e-05,2]
[343717712,1732908639595,-1000.0,9.77e-05,2]
[343717713,1732908639604,-587391.476,9.8e-05,2]
[343717714,1732908639614,-5581.5594,9.8e-05,2]
[343717715,1732908639623,-495.04,9.8e-05,2]
[343717716,1732908639632,-1000.0,9.8e-05,2]
[343717717,1732908639641,-100000.0,9.8e-05,2]
[343717718,1732908639651,-497.3861312,9.8e-05,2]
[343717719,1732908639660,-227.46,9.863e-05,2]
[343717720,1732908639669,-1600.0,9.863e-05,2]
[343717721,1732908639679,-24376.64034707,9.9e-05,2]
[343717722,1732908639688,-40847.31158739,9.94e-05,2]
[343717723,1732908639698,-217.87,9.946e-05,2]
[343717724,1732908639707,-1247.66013906,9.97e-05,2]
[343717725,1732908639717,-280486.83069919,9.971e-05,2]
[343717726,1732908639726,-1247.66013906,9.971e-05,2]
[343717727,1732908639735,-280486.83069919,9.976e-05,2]
[343717728,1732908639745,-200.0,9.977e-05,2]
[343717729,1732908639755,-1247.66013906,9.977e-05,2]
[343717730,1732908639764,-240.88773581,9.978e-05,2]
[343717731,1732908639774,-1247.66013906,9.978e-05,2]
[343717732,1732908639785,-280486.83069919,9.98e-05,2]
[343717733,1732908639795,-429.54982406,9.98e-05,2]
[343717734,1732908639804,-553292.73942364,9.98e-05,2]
[343717735,1732908639814,-240.88773581,9.983e-05,2]
[343717736,1732908639823,-1247.66013906,9.985e-05,2]
[343717737,1732908639833,-200.0,9.987e-05,2]
[343717738,1732908639843,-10110.32408139,9.99e-05,2]
[343717739,1732908639852,-10110.32408132,9.99e-05,2]
[343717740,1732908639861,-10110.32408132,9.99e-05,2]
[343717741,1732908639871,-10110.32408132,9.99e-05,2]
[343717742,1732908639880,-10110.32408132,9.99e-05,2]
[343717743,1732908639890,-10110.32408132,9.99e-05,2]
[343717744,1732908639900,-10110.32408132,9.99e-05,2]
[343717745,1732908639910,-10110.32408132,9.99e-05,2]
[343717746,1732908639919,-10110.32408132,9.99e-05,2]
[343717747,1732908639929,-10110.32408132,9.99e-05,2]
[343717748,1732908639938,-240.88773581,9.992e-05,2]
[343717749,1732908639948,-280486.83069919,9.992e-05,2]
[343717750,1732908639958,-240.88773581,9.992e-05,2]
[343717751,1732908639967,-200.0,9.992e-05,2]
[343717752,1732908639977,-2946.7385297,9.994e-05,2]
[343717753,1732908639986,-627.4248633,9.994e-05,2]
[343717754,1732908639996,-7883.6571672,9.994e-05,2]
[343717755,1732908640006,-2414.5757946,9.994e-05,2]
[343717756,1732908640015,-6494.9728141,9.994e-05,2]
[343717757,1732908640025,-6464.9671104,9.994e-05,2]
[343717758,1732908640036,-2513.291388,9.994e-05,2]
[343717759,1732908640046,-761.6702597,9.994e-05,2]
[343717760,1732908640056,-240.88773581,9.995e-05,2]
[343717761,1732908640066,-1247.66013906,9.996e-05,2]
[343717762,1732908640075,-280486.83069919,9.998e-05,2]
[343717763,1732908640084,-607.53,9.999e-05,2]
[343717764,1732908640094,-523.91,9.999e-05,2]
[343717765,1732908640103,-480.56891894,9.999e-05,2]
[343717766,1732908640113,-2000.0,9.999e-05,2]
[343717767,1732908640122,-240.88773581,9.999e-05,2]
[343717768,1732908640131,-280486.83069919,0.0001,2]
[343717769,1732908640140,-31563.86060754,0.0001,2]
[343717770,1732908640149,-3560439.23247895,0.0001,2]
[343717772,1732908640326,-886.25335863,0.0001,2]
[343717773,1732908640336,-886.25335863,0.0001,2]
[343717774,1732908640346,-886.25335863,0.0001,2]
[343717775,1732908640355,-886.25335863,0.0001,2]
[343717776,1732908640365,-886.25335863,0.0001,2]
[343717777,1732908640375,-886.25335863,0.0001,2]
[343717778,1732908640384,-886.25335863,0.0001,2]
[343717779,1732908640394,-886.25335863,0.0001,2]
[343717780,1732908640403,-886.25335863,0.0001,2]
[343717781,1732908640413,-562974.41047525,0.0001,2]
[343717782,1732908640423,-6455.3238293,0.0001,2]
[343717783,1732908640432,-38999.999999,0.0001,2]
[343717784,1732908640442,-22597.95492802,0.0001,2]
[343717785,1732908640452,-18037780.30091484,0.0001,2]
[343717786,1732908640480,-17822.93889805,0.0001,2]
[343717787,1732908640491,-27345.42246591,0.0001,2]
[343717788,1732908640526,-120705.38051338,0.0001,2]
[343717789,1732908640545,-407.59849996,0.0001,2]
[343717790,1732908640653,-570.500004,0.0001,2]
[343717794,1732908642648,-4475.06418715,0.0001,2]
[343717795,1732908642659,-1087.15555643,0.0001,2]
[343717800,1732908644706,-5452.65251683,9.587e-05,2]
[343717801,1732908644718,-2142.25,9.587e-05,2]
[343717802,1732908644729,-195273.34467604,9.587e-05,2]
[343717803,1732908644740,-15510.41308439,9.587e-05,2]
[343717804,1732908644750,-104499.58691561,0.0001,2]
[343717805,1732908644903,-2922.65685944,0.0001,2]
[343717806,1732908644912,-4535.31574154,0.0001,2]
[343717809,1732908647410,-2045.69303655,9.587e-05,2]
[343717810,1732908647420,-20873.4540796,0.0001,2]
[343717811,1732908842809,1000.0,9.9e-05,10]
[343717812,1732908893370,1000.0,0.00026,120]
[343717817,1732909345914,164.6,0.00016658,30]
[343717845,1732909831995,-1089.47,8.219e-05,2]
[343717846,1732909832005,-250.0,8.772e-05,2]
[343717847,1732909832014,-158.86,8.809e-05,2]
[343717848,1732909832023,-1900.02,8.92e-05,2]
[343717849,1732909832034,-199.65,8.945e-05,2]
[343717850,1732909832043,-159.75,9.067e-05,2]
[343717851,1732909832054,-150.0,9.151e-05,2]
[343717852,1732909832063,-300.0,9.176e-05,2]
[343717853,1732909832072,-823.3444,9.177e-05,2]
[343717854,1732909832082,-2415.0862,9.177e-05,2]
[343717855,1732909832091,-914.0277,9.177e-05,2]
[343717856,1732909832100,-156.36,9.231e-05,2]
[343717857,1732909832110,-150.0,9.276e-05,2]
[343717858,1732909832119,-16908.6093,9.277e-05,2]
[343717859,1732909832128,-100000.0,9.277e-05,2]
[343717860,1732909832137,-66155.5842,9.277e-05,2]
[343717861,1732909832147,-11299.689,9.277e-05,2]
[343717862,1732909832156,-434.45,9.28e-05,2]
[343717863,1732909832166,-166.63,9.535e-05,2]
[343717864,1732909832176,-181.96,9.589e-05,2]
[343717865,1732909832185,-400.0,9.589e-05,2]
[343717866,1732909832195,-701.26,9.67e-05,2]
[343717867,1732909832204,-181.96,9.726e-05,2]
[343717868,1732909832214,-248.6930656,9.8e-05,2]
[343717869,1732909832224,-1000.0,9.8e-05,2]
[343717870,1732909832235,-181.96,9.863e-05,2]
[343717871,1732909832244,-1600.0,9.863e-05,2]
[343717872,1732909832254,-2500.0,9.9e-05,2]
[343717873,1732909832264,-10667.7763,9.9e-05,2]
[343717874,1732909832274,-1000.0,9.9e-05,2]
[343717875,1732909832284,-1548.0,9.9e-05,2]
[343717876,1732909832293,-1168.32918394,9.9e-05,2]
[343717877,1732909832304,-434.1720241,9.973e-05,2]
[343717879,1732909832316,-500.0,9.973e-05,2]
[343717881,1732909832326,-501.45819183,9.973e-05,2]
[343717883,1732909832335,-480.84929429,9.973e-05,2]
[343717886,1732909832659,-19.15070571,9.973e-05,2]
[343717887,1732909832669,-500.0,9.973e-05,2]
[343717888,1732909832679,-975.12620615,9.973e-05,2]
[343717889,1732909832691,-3599.1,9.973e-05,2]
[343717890,1732909832702,-9642.9,9.973e-05,2]
[343717891,1732909832713,-1669.4503879,9.973e-05,2]
[343717892,1732909832767,-748.13379644,9.973e-05,2]
[343717893,1732909832939,-387.645,9.973e-05,2]
[343717895,1732909838259,-1000.0,9.431e-05,2]
[343717896,1732909838268,-4014.15691192,9.973e-05,2]
[343717897,1732909838278,-21036.51230241,9.979e-05,2]
[343717898,1732909838288,-2154.624,9.982e-05,2]
[343717899,1732909838298,-177.687,9.982e-05,2]
[343717900,1732909838308,-21036.51230241,9.984e-05,2]
[343717901,1732909838318,-21036.51230241,9.985e-05,2]
[343717902,1732909838327,-505.45,9.987e-05,2]